[Event "26th OIBM 2023"]
[Site "Gmund am Tegernsee"]
[Date "2023.10.31"]
[Round "4.14"]
[White "Ghazarian, Kirk"]
[Black "Bracker, Arne"]
[Result "1-0"]
[ECO "A28"]
[WhiteElo "2473"]
[BlackElo "2279"]
[Annotator "RC"]
[PlyCount "83"]
[EventDate "2023.10.04"]
[EventType "swiss"]
[EventCountry "GER"]
[SourceTitle "playchess.com"]
[Source "ChessBase"]
[SourceQuality "1"]
[TimeControl "40/5400+30:1800+30"]

1. c4 {[%emt 0:01:00]} Nf6 {[%emt 0:00:26]} 2. Nc3 {[%emt 0:00:25]} e5 {[%emt 0:00:39]} 3. Nf3 {[%emt 0:00:23]} Nc6 {[%emt 0:00:08]} 4. e4 {[%emt 0:00:31]} Bb4 {[%emt 0:01:45]} 5. d3 {[%emt 0:00:16]} d6 {[%emt 0:00:43]} 6. a3 {[%emt 0:00:10]} Bc5 {[%emt 0:00:36]} 7. b4 {[%emt 0:00:12]} Bb6 {[%emt 0:00:29]} 8. Na4 {[%emt 0:00:16]} Bd4 {[%emt 0:06:17]} 9. Rb1 {[%emt 0:02:38]} Bg4 {[%emt 0:02:48]} 10. Be2 {[%emt 0:01:06]} Bxf3 {[%emt 0:06:50]} 11. Bxf3 {[%emt 0:00:06]} a6 {[%emt 0:00:07]} 12. Bd2 {[%emt 0:00:51]} h5 {[%emt 0:12:05]} 13. Nc3 {[%emt 0:06:32]} Ng4 {[%emt 0:03:40]} 14. Bxg4 {[%emt 0:01:39]} Qh4 {[%emt 0:00:34]} 15. Bd7+ {[%emt 0:02:57]} Kxd7 {[%emt 0:01:08]} 16. Qf3 {[%emt 0:00:29]} Bxc3 {[%emt 0:16:18]} 17. Bxc3 {[%emt 0:00:26]} Ke7 {[%emt 0:05:56]} 18. c5 {[%emt 0:02:38]} Rh6 {[%emt 0:05:10]} 19. O-O {[%emt 0:02:15]} Qg4 {[%emt 0:01:57]} 20. Qe3 {[%emt 0:01:39]} Rg6 {[%emt 0:02:10]} 21. cxd6+ {[%emt 0:01:11]} Kf8 {[%emt 0:00:57]} 22. g3 {[%emt 0:01:32]} Rxd6 {[%emt 0:00:45]} 23. Rbd1 {[%emt 0:19:29]} Rad8 {[%emt 0:00:49]} 24. Rd2 {[%emt 0:01:12]} h4 {[%emt 0:07:01]} 25. f4 {[%emt 0:08:47]} hxg3 {[%emt 0:04:09]} 26. hxg3 {[%emt 0:00:22]} Rg6 {[%emt 0:09:12]} 27. Kg2 {[%emt 0:01:39]} exf4 {[%emt 0:03:41]} 28. Rxf4 {[%emt 0:00:12]} Qg5 {[%emt 0:00:15]} 29. Rdf2 {[%emt 0:06:53]} Kg8 {[%emt 0:00:31]} 30. d4 {[%emt 0:12:06]} f6 {[%emt 0:00:15]} 31. Bb2 {[%emt 0:01:28]} Rh6 {[%emt 0:05:23]} 32. e5 {[%emt 0:02:03]} Rf8 {[%emt 0:01:25]} 33. Qe4 {[%emt 0:07:04]} Qh5 {[%emt 0:01:42]} 34. Rh4 {[%emt 0:02:18]} Qg6 {[%emt 0:00:02]} 35. Qd5+ {[%emt 0:00:10]} Kh7 {[%emt 0:00:03]} 36. Rxh6+ {[%emt 0:00:08]} Kxh6 {[%emt 0:00:49]} 37. Qf3 {[%emt 0:04:53]} Qg5 {[%emt 0:01:26]} 38. Qe4 {[%emt 0:05:50]} f5 {[%emt 0:00:31]} 39. Qd3 {[%emt 0:00:50]} g6 {[%emt 0:00:41]} 40. d5 {[%emt 0:00:36]} Rd8 {[%emt 0:00:27]} 41. Qc4 {[%emt 0:34:19]} f4 {[%emt 0:02:53]} 42. Rxf4 {[%emt 0:00:00]} 1-0

[Event "26th OIBM 2023"]
[Site "Gmund am Tegernsee"]
[Date "2023.10.31"]
[Round "4.15"]
[White "Schneider, Ilja"]
[Black "Neukirchner, Pascal"]
[Result "1-0"]
[ECO "B23"]
[WhiteElo "2468"]
[BlackElo "2265"]
[Annotator "RC"]
[PlyCount "69"]
[EventDate "2023.10.04"]
[EventType "swiss"]
[EventCountry "GER"]
[SourceTitle "playchess.com"]
[Source "ChessBase"]
[SourceQuality "1"]
[TimeControl "40/5400+30:1800+30"]

1. e4 {[%emt 0:00:13]} c5 {[%emt 0:00:11]} 2. Nc3 {[%emt 0:00:16]} Nc6 {[%emt 0:00:38]} 3. Bb5 {[%emt 0:00:18]} Nd4 {[%emt 0:00:12]} 4. Nf3 {[%emt 0:00:16]} a6 {[%emt 0:00:27]} 5. Bd3 {[%emt 0:00:13]} g6 {[%emt 0:00:10]} 6. O-O {[%emt 0:04:11]} Bg7 {[%emt 0:00:07]} 7. Re1 {[%emt 0:03:28]} Nh6 {[%emt 0:01:41]} 8. Nd5 {[%emt 0:14:45]} d6 {[%emt 0:08:45]} 9. Nxd4 {[%emt 0:07:33]} cxd4 {[%emt 0:00:28]} 10. c3 {[%emt 0:00:07]} O-O {[%emt 0:01:34]} 11. Qb3 {[%emt 0:05:39]} e6 {[%emt 0:39:53]} 12. Nb6 {[%emt 0:01:30]} Ng4 {[%emt 0:01:11]} 13. Rf1 {[%emt 0:09:50]} Rb8 {[%emt 0:10:43]} 14. Be2 {[%emt 0:08:50]} Nxh2 {[%emt 0:10:38]} 15. Kxh2 {[%emt 0:00:22]} Qh4+ {[%emt 0:00:07]} 16. Kg1 {[%emt 0:00:05]} Be5 {[%emt 0:00:06]} 17. f4 {[%emt 0:02:39]} d3 {[%emt 0:02:26]} 18. Bxd3 {[%emt 0:03:16]} Bxf4 {[%emt 0:00:23]} 19. Rxf4 {[%emt 0:02:16]} Qxf4 {[%emt 0:00:02]} 20. Qc4 {[%emt 0:02:28]} Qe5 {[%emt 0:04:13]} 21. Bf1 {[%emt 0:04:37]} d5 {[%emt 0:03:12]} 22. d4 {[%emt 0:01:52]} Qd6 {[%emt 0:00:30]} 23. Qc5 {[%emt 0:00:30]} Qg3 {[%emt 0:00:30]} 24. Bh6 {[%emt 0:00:30]} Re8 {[%emt 0:00:30]} 25. e5 {[%emt 0:07:15]} g5 {[%emt 0:07:11]} 26. Qc7 {[%emt 0:01:33]} Qh4 {[%emt 0:01:05]} 27. Qxb8 {[%emt 0:09:49]} Qxh6 {[%emt 0:00:02]} 28. Be2 {[%emt 0:00:28]} g4 {[%emt 0:00:52]} 29. Bxg4 {[%emt 0:00:12]} Qe3+ {[%emt 0:00:44]} 30. Kh1 {[%emt 0:00:06]} Bd7 {[%emt 0:01:41]} 31. Qxb7 {[%emt 0:01:16]} Bb5 {[%emt 0:00:01]} 32. Nd7 {[%emt 0:01:35]} Qh6+ {[%emt 0:04:27]} 33. Bh3 {[%emt 0:00:02]} Bd3 {[%emt 0:00:05]} 34. Nf6+ {[%emt 0:00:09]} Kf8 {[%emt 0:00:16]} 35. Qb4+ {[%emt 0:00:20]} 1-0

[Event "26th OIBM 2023"]
[Site "Gmund am Tegernsee"]
[Date "2023.10.31"]
[Round "4.16"]
[White "Meins, Gerlef"]
[Black "Deglmann, Ludwig"]
[Result "1/2-1/2"]
[ECO "E16"]
[WhiteElo "2412"]
[BlackElo "2243"]
[Annotator "RC"]
[PlyCount "79"]
[EventDate "2023.10.04"]
[EventType "swiss"]
[EventCountry "GER"]
[SourceTitle "playchess.com"]
[Source "ChessBase"]
[SourceQuality "1"]
[TimeControl "40/5400+30:1800+30"]

1. d4 {[%emt 0:00:04]} Nf6 {[%emt 0:00:38]} 2. c4 {[%emt 0:00:23]} e6 {[%emt 0:00:40]} 3. Nf3 {[%emt 0:00:31]} b6 {[%emt 0:00:57]} 4. g3 {[%emt 0:00:56]} Bb7 {[%emt 0:02:48]} 5. Bg2 {[%emt 0:00:24]} g6 {[%emt 0:01:04]} 6. Nc3 {[%emt 0:12:48]} Bg7 {[%emt 0:03:57]} 7. d5 {[%emt 0:10:30]} O-O {[%emt 0:04:22]} 8. O-O {[%emt 0:00:40]} Re8 {[%emt 0:04:14]} 9. Nd4 {[%emt 0:14:01]} exd5 {[%emt 0:08:58]} 10. cxd5 {[%emt 0:01:15]} Na6 {[%emt 0:02:03]} 11. Bf4 {[%emt 0:03:44]} Nc5 {[%emt 0:08:45]} 12. Rc1 {[%emt 0:05:59]} a5 {[%emt 0:02:53]} 13. b3 {[%emt 0:16:41]} Nh5 {[%emt 0:07:30]} 14. Be3 {[%emt 0:00:48]} Rxe3 {[%emt 0:00:46]} 15. fxe3 {[%emt 0:00:09]} Qg5 {[%emt 0:00:47]} 16. Qd2 {[%emt 0:03:50]} Re8 {[%emt 0:02:47]} 17. Nf3 {[%emt 0:09:09]} Qxe3+ {[%emt 0:01:53]} 18. Qxe3 {[%emt 0:00:07]} Rxe3 {[%emt 0:00:05]} 19. Nb5 {[%emt 0:01:07]} Bxd5 {[%emt 0:03:13]} 20. Nxc7 {[%emt 0:01:46]} Bc6 {[%emt 0:02:13]} 21. Rcd1 {[%emt 0:05:06]} Rxe2 {[%emt 0:04:38]} 22. Rf2 {[%emt 0:04:46]} Rxf2 {[%emt 0:02:07]} 23. Kxf2 {[%emt 0:00:11]} Nf6 {[%emt 0:00:10]} 24. Kg1 {[%emt 0:01:15]} Nfe4 {[%emt 0:02:44]} 25. Nd5 {[%emt 0:01:47]} Bxd5 {[%emt 0:00:50]} 26. Rxd5 {[%emt 0:00:02]} Nc3 {[%emt 0:00:08]} 27. Rd6 {[%emt 0:04:51]} Nxa2 {[%emt 0:02:54]} 28. Rxb6 {[%emt 0:00:04]} Nb4 {[%emt 0:00:50]} 29. Rb8+ {[%emt 0:00:29]} Bf8 {[%emt 0:00:09]} 30. Nd4 {[%emt 0:00:25]} Kg7 {[%emt 0:03:03]} 31. Ra8 {[%emt 0:01:01]} Ncd3 {[%emt 0:04:05]} 32. Nb5 {[%emt 0:00:32]} Bc5+ {[%emt 0:01:39]} 33. Kf1 {[%emt 0:00:04]} Bb6 {[%emt 0:02:03]} 34. Nd6 {[%emt 0:00:28]} Ne5 {[%emt 0:01:02]} 35. Nc4 {[%emt 0:00:48]} Nxc4 {[%emt 0:01:50]} 36. bxc4 {[%emt 0:00:02]} Nd3 {[%emt 0:01:06]} 37. Ra6 {[%emt 0:00:52]} Bd8 {[%emt 0:00:47]} 38. Ra8 {[%emt 0:00:27]} Bb6 {[%emt 0:02:46]} 39. Ra6 {[%emt 0:00:33]} Bd8 {[%emt 0:00:07]} 40. Ra8 {[%emt 0:01:14]} 1/2-1/2

[Event "26th OIBM 2023"]
[Site "Gmund am Tegernsee"]
[Date "2023.10.31"]
[Round "4.17"]
[White "Dobrosmyslov, Artem"]
[Black "Weishaeutel, Moritz"]
[Result "0-1"]
[ECO "D32"]
[WhiteElo "2316"]
[BlackElo "2403"]
[Annotator "RC"]
[PlyCount "100"]
[EventDate "2023.10.04"]
[EventType "swiss"]
[EventCountry "GER"]
[SourceTitle "playchess.com"]
[Source "ChessBase"]
[SourceQuality "1"]
[TimeControl "40/5400+30:1800+30"]

1. c4 {[%emt 0:01:35]} e6 {[%emt 0:00:05]} 2. Nc3 {[%emt 0:00:41]} d5 {[%emt 0:00:03]} 3. d4 {[%emt 0:00:24]} c5 {[%emt 0:00:03]} 4. cxd5 {[%emt 0:00:27]} cxd4 {[%emt 0:00:03]} 5. Qa4+ {[%emt 0:00:51]} Bd7 {[%emt 0:00:04]} 6. Qxd4 {[%emt 0:00:46]} exd5 {[%emt 0:00:03]} 7. Qxd5 {[%emt 0:04:26]} Nf6 {[%emt 0:00:05]} 8. Qd1 {[%emt 0:01:52]} Bc5 {[%emt 0:00:09]} 9. e3 {[%emt 0:02:25]} O-O {[%emt 0:00:08]} 10. Be2 {[%emt 0:01:17]} Qe7 {[%emt 0:00:16]} 11. Nf3 {[%emt 0:01:07]} Rd8 {[%emt 0:00:07]} 12. Bd2 {[%emt 0:02:48]} Nc6 {[%emt 0:00:24]} 13. O-O {[%emt 0:00:31]} Ne5 {[%emt 0:00:44]} 14. Qc2 {[%emt 0:25:10]} Rac8 {[%emt 0:01:12]} 15. Rad1 {[%emt 0:02:07]} b5 {[%emt 0:03:21]} 16. Qb1 {[%emt 0:03:18]} b4 {[%emt 0:04:23]} 17. Ne4 {[%emt 0:25:01]} Bf5 {[%emt 0:01:06]} 18. Nxf6+ {[%emt 0:08:30]} Qxf6 {[%emt 0:00:04]} 19. e4 {[%emt 0:00:08]} Bg4 {[%emt 0:00:14]} 20. Be3 {[%emt 0:00:39]} Nxf3+ {[%emt 0:06:27]} 21. Bxf3 {[%emt 0:02:04]} Bxf3 {[%emt 0:00:06]} 22. gxf3 {[%emt 0:01:40]} Bd6 {[%emt 0:00:53]} 23. Rd5 {[%emt 0:01:51]} Re8 {[%emt 0:07:25]} 24. Qd1 {[%emt 0:04:15]} Bc7 {[%emt 0:13:13]} 25. Kh1 {[%emt 0:01:24]} Qh4 {[%emt 0:05:19]} 26. f4 {[%emt 0:00:05]} Bxf4 {[%emt 0:00:15]} 27. Rh5 {[%emt 0:01:58]} Qe7 {[%emt 0:00:03]} 28. Qf3 {[%emt 0:01:31]} Qxe4 {[%emt 0:05:38]} 29. Qxe4 {[%emt 0:00:13]} Rxe4 {[%emt 0:00:02]} 30. Bxa7 {[%emt 0:05:05]} g5 {[%emt 0:01:08]} 31. h4 {[%emt 0:00:53]} Ra8 {[%emt 0:04:41]} 32. Be3 {[%emt 0:00:46]} Rxa2 {[%emt 0:04:18]} 33. Bxf4 {[%emt 0:00:03]} gxf4 {[%emt 0:00:05]} 34. Rg1+ {[%emt 0:00:16]} Kf8 {[%emt 0:00:04]} 35. Rxh7 {[%emt 0:00:22]} Rxb2 {[%emt 0:00:12]} 36. Rgg7 {[%emt 0:00:45]} Rxf2 {[%emt 0:02:32]} 37. Rxf7+ {[%emt 0:00:02]} Ke8 {[%emt 0:00:06]} 38. Rfg7 {[%emt 0:00:21]} Re1+ {[%emt 0:09:19]} 39. Rg1 {[%emt 0:00:05]} Rxg1+ {[%emt 0:02:39]} 40. Kxg1 {[%emt 0:00:04]} Rb2 {[%emt 0:00:14]} 41. h5 {[%emt 0:07:33]} b3 {[%emt 0:05:59]} 42. h6 {[%emt 0:24:41]} Kf8 {[%emt 0:00:10]} 43. Rg7 {[%emt 0:01:19]} f3 {[%emt 0:03:24]} 44. Kf1 {[%emt 0:00:35]} Rb1+ {[%emt 0:02:58]} 45. Kf2 {[%emt 0:00:01]} b2 {[%emt 0:00:06]} 46. Rg3 {[%emt 0:01:03]} Rh1 {[%emt 0:00:21]} 47. h7 {[%emt 0:00:27]} b1=Q {[%emt 0:00:45]} 48. Rg8+ {[%emt 0:00:22]} Kf7 {[%emt 0:00:02]} 49. h8=Q {[%emt 0:00:08]} Rxh8 {[%emt 0:00:05]} 50. Rxh8 {[%emt 0:00:02]} Qb2+ {[%emt 0:00:05]} 0-1

[Event "26th OIBM 2023"]
[Site "Gmund am Tegernsee"]
[Date "2023.10.31"]
[Round "4.18"]
[White "Singer, Christoph"]
[Black "Kargin, Arseny"]
[Result "0-1"]
[ECO "D11"]
[WhiteElo "2303"]
[BlackElo "2391"]
[Annotator "RC"]
[PlyCount "68"]
[EventDate "2023.10.04"]
[EventType "swiss"]
[EventCountry "GER"]
[SourceTitle "playchess.com"]
[Source "ChessBase"]
[SourceQuality "1"]
[TimeControl "40/5400+30:1800+30"]

1. d4 {[%emt 0:00:13]} d5 {[%emt 0:00:06]} 2. c4 {[%emt 0:00:06]} c6 {[%emt 0:00:07]} 3. Nf3 {[%emt 0:00:11]} Nf6 {[%emt 0:00:06]} 4. e3 {[%emt 0:00:18]} Bg4 {[%emt 0:00:10]} 5. Nbd2 {[%emt 0:04:11]} e6 {[%emt 0:01:28]} 6. Be2 {[%emt 0:06:55]} Nbd7 {[%emt 0:00:58]} 7. O-O {[%emt 0:00:26]} Bd6 {[%emt 0:01:43]} 8. b3 {[%emt 0:00:37]} Qe7 {[%emt 0:04:16]} 9. Bb2 {[%emt 0:00:37]} a5 {[%emt 0:00:19]} 10. Ne5 {[%emt 0:13:00]} Bxe2 {[%emt 0:03:24]} 11. Qxe2 {[%emt 0:01:27]} O-O {[%emt 0:02:31]} 12. e4 {[%emt 0:19:26]} Nxe4 {[%emt 0:01:51]} 13. Nxe4 {[%emt 0:01:45]} dxe4 {[%emt 0:00:06]} 14. Qxe4 {[%emt 0:04:00]} Rfd8 {[%emt 0:06:45]} 15. Nxd7 {[%emt 0:16:37]} Rxd7 {[%emt 0:02:16]} 16. Rad1 {[%emt 0:09:18]} a4 {[%emt 0:15:22]} 17. Rd3 {[%emt 0:00:05]} axb3 {[%emt 0:03:10]} 18. axb3 {[%emt 0:00:02]} Ra2 {[%emt 0:02:15]} 19. Rh3 {[%emt 0:00:08]} g6 {[%emt 0:02:01]} 20. Qb1 {[%emt 0:00:05]} Ra6 {[%emt 0:01:15]} 21. Rd1 {[%emt 0:00:46]} Qd8 {[%emt 0:01:57]} 22. Qe4 {[%emt 0:06:14]} Be7 {[%emt 0:08:17]} 23. Rhd3 {[%emt 0:05:10]} Bf6 {[%emt 0:01:18]} 24. Bc3 {[%emt 0:00:44]} c5 {[%emt 0:04:59]} 25. dxc5 {[%emt 0:06:29]} Bxc3 {[%emt 0:01:09]} 26. g3 {[%emt 0:00:06]} Ra1 {[%emt 0:01:36]} 27. Rxa1 {[%emt 0:01:20]} Bxa1 {[%emt 0:02:02]} 28. Rd6 {[%emt 0:00:35]} Rxd6 {[%emt 0:01:39]} 29. cxd6 {[%emt 0:00:05]} Qxd6 {[%emt 0:00:16]} 30. Qxb7 {[%emt 0:00:06]} Bc3 {[%emt 0:00:51]} 31. Qc8+ {[%emt 0:01:12]} Kg7 {[%emt 0:04:58]} 32. c5 {[%emt 0:00:06]} Qd1+ {[%emt 0:00:12]} 33. Kg2 {[%emt 0:00:03]} Qxb3 {[%emt 0:01:06]} 34. c6 {[%emt 0:00:11]} Ba5 {[%emt 0:02:46]} 0-1

[Event "26th OIBM 2023"]
[Site "Gmund am Tegernsee"]
[Date "2023.10.31"]
[Round "4.19"]
[White "Colpe, Malte"]
[Black "Jacob, Tobias"]
[Result "1-0"]
[ECO "B50"]
[WhiteElo "2386"]
[BlackElo "1980"]
[Annotator "RC"]
[PlyCount "79"]
[EventDate "2023.10.04"]
[EventType "swiss"]
[EventCountry "GER"]
[SourceTitle "playchess.com"]
[Source "ChessBase"]
[SourceQuality "1"]
[TimeControl "40/5400+30:1800+30"]

1. e4 {[%emt 0:00:04]} c5 {[%emt 0:00:06]} 2. Nf3 {[%emt 0:00:06]} d6 {[%emt 0:00:06]} 3. Nc3 {[%emt 0:00:24]} a6 {[%emt 0:00:43]} 4. a4 {[%emt 0:01:40]} Nf6 {[%emt 0:00:46]} 5. e5 {[%emt 0:01:33]} dxe5 {[%emt 0:00:37]} 6. Nxe5 {[%emt 0:00:07]} Nbd7 {[%emt 0:09:55]} 7. Nc4 {[%emt 0:02:27]} Nb6 {[%emt 0:09:22]} 8. Ne3 {[%emt 0:01:51]} e6 {[%emt 0:00:32]} 9. g3 {[%emt 0:01:34]} Nbd5 {[%emt 0:06:25]} 10. Bg2 {[%emt 0:01:48]} b6 {[%emt 0:05:02]} 11. Ncxd5 {[%emt 0:15:06]} exd5 {[%emt 0:02:14]} 12. c4 {[%emt 0:09:17]} Ra7 {[%emt 0:06:48]} 13. cxd5 {[%emt 0:02:52]} Be7 {[%emt 0:08:27]} 14. O-O {[%emt 0:02:31]} O-O {[%emt 0:00:13]} 15. Qb3 {[%emt 0:12:53]} Rd7 {[%emt 0:13:40]} 16. Nc4 {[%emt 0:04:41]} Rxd5 {[%emt 0:07:12]} 17. Qxb6 {[%emt 0:03:01]} Rd4 {[%emt 0:02:48]} 18. Qxd8 {[%emt 0:03:15]} Rfxd8 {[%emt 0:02:18]} 19. Ne5 {[%emt 0:04:34]} Bd7 {[%emt 0:02:49]} 20. Nxd7 {[%emt 0:05:07]} R8xd7 {[%emt 0:00:08]} 21. Re1 {[%emt 0:05:15]} Kf8 {[%emt 0:01:14]} 22. b3 {[%emt 0:02:43]} Nd5 {[%emt 0:02:05]} 23. Re4 {[%emt 0:09:05]} Nb4 {[%emt 0:02:04]} 24. Rxd4 {[%emt 0:00:20]} Rxd4 {[%emt 0:00:09]} 25. Bf1 {[%emt 0:01:13]} a5 {[%emt 0:04:36]} 26. Bc4 {[%emt 0:01:31]} f5 {[%emt 0:06:00]} 27. Kf1 {[%emt 0:02:12]} g5 {[%emt 0:01:57]} 28. f3 {[%emt 0:01:50]} h5 {[%emt 0:00:54]} 29. d3 {[%emt 0:01:20]} Rd8 {[%emt 0:03:28]} 30. Bd2 {[%emt 0:00:57]} f4 {[%emt 0:02:09]} 31. gxf4 {[%emt 0:00:32]} gxf4 {[%emt 0:00:04]} 32. Bxf4 {[%emt 0:00:32]} Nxd3 {[%emt 0:00:11]} 33. Bc7 {[%emt 0:00:40]} Rd4 {[%emt 0:00:31]} 34. Rd1 {[%emt 0:01:05]} Nb2 {[%emt 0:00:52]} 35. Rxd4 {[%emt 0:00:09]} cxd4 {[%emt 0:00:04]} 36. Bxa5 {[%emt 0:00:22]} Nxc4 {[%emt 0:00:20]} 37. bxc4 {[%emt 0:00:06]} Bc5 {[%emt 0:00:08]} 38. Ke2 {[%emt 0:00:57]} Ke7 {[%emt 0:00:05]} 39. Kd3 {[%emt 0:00:39]} Kd7 {[%emt 0:00:37]} 40. Be1 {[%emt 0:00:59]} 1-0

[Event "26th OIBM 2023"]
[Site "Gmund am Tegernsee"]
[Date "2023.10.31"]
[Round "4.20"]
[White "Hess, Max"]
[Black "Mueller, Frank"]
[Result "1-0"]
[ECO "B36"]
[WhiteElo "2378"]
[BlackElo "2271"]
[Annotator "RC"]
[PlyCount "87"]
[EventDate "2023.10.04"]
[EventType "swiss"]
[EventCountry "GER"]
[SourceTitle "playchess.com"]
[Source "ChessBase"]
[SourceQuality "1"]
[TimeControl "40/5400+30:1800+30"]

1. c4 {[%emt 0:00:06]} Nf6 {[%emt 0:00:12]} 2. Nf3 {[%emt 0:00:07]} g6 {[%emt 0:00:16]} 3. Nc3 {[%emt 0:00:07]} c5 {[%emt 0:00:17]} 4. e4 {[%emt 0:02:22]} Nc6 {[%emt 0:02:32]} 5. d4 {[%emt 0:01:08]} cxd4 {[%emt 0:00:25]} 6. Nxd4 {[%emt 0:00:04]} Nxd4 {[%emt 0:00:15]} 7. Qxd4 {[%emt 0:00:04]} d6 {[%emt 0:00:25]} 8. Be2 {[%emt 0:00:56]} Bg7 {[%emt 0:00:20]} 9. O-O {[%emt 0:00:44]} O-O {[%emt 0:00:14]} 10. Qd3 {[%emt 0:00:18]} Be6 {[%emt 0:03:58]} 11. Be3 {[%emt 0:02:08]} Nd7 {[%emt 0:03:00]} 12. Bd4 {[%emt 0:29:59]} Ne5 {[%emt 0:30:45]} 13. Qe3 {[%emt 0:00:43]} Rc8 {[%emt 0:03:14]} 14. b3 {[%emt 0:01:13]} Nc6 {[%emt 0:04:28]} 15. Bxg7 {[%emt 0:00:37]} Kxg7 {[%emt 0:00:12]} 16. Rad1 {[%emt 0:02:43]} Qa5 {[%emt 0:02:50]} 17. Kh1 {[%emt 0:03:52]} Qc5 {[%emt 0:04:32]} 18. Qd2 {[%emt 0:00:06]} a6 {[%emt 0:02:11]} 19. f4 {[%emt 0:04:37]} f6 {[%emt 0:00:57]} 20. Rf3 {[%emt 0:04:22]} Bg4 {[%emt 0:02:02]} 21. Rd3 {[%emt 0:03:56]} Bxe2 {[%emt 0:01:28]} 22. Nxe2 {[%emt 0:06:05]} b5 {[%emt 0:07:05]} 23. Rc1 {[%emt 0:11:09]} bxc4 {[%emt 0:03:23]} 24. Rxc4 {[%emt 0:00:05]} Qf2 {[%emt 0:01:16]} 25. Rf3 {[%emt 0:01:21]} Qb6 {[%emt 0:01:11]} 26. Rfc3 {[%emt 0:01:23]} Na7 {[%emt 0:02:04]} 27. Nd4 {[%emt 0:00:16]} Rxc4 {[%emt 0:01:50]} 28. Rxc4 {[%emt 0:01:05]} Rc8 {[%emt 0:00:09]} 29. Rxc8 {[%emt 0:00:17]} Nxc8 {[%emt 0:00:22]} 30. f5 {[%emt 0:00:04]} g5 {[%emt 0:05:38]} 31. Ne6+ {[%emt 0:03:11]} Kf7 {[%emt 0:01:17]} 32. h4 {[%emt 0:12:30]} gxh4 {[%emt 0:02:58]} 33. Qh6 {[%emt 0:00:41]} Ke8 {[%emt 0:00:38]} 34. Qxh7 {[%emt 0:01:31]} Kd7 {[%emt 0:02:25]} 35. Qxh4 {[%emt 0:00:21]} Na7 {[%emt 0:00:24]} 36. Qh8 {[%emt 0:01:48]} Nc6 {[%emt 0:03:50]} 37. Nf8+ {[%emt 0:04:01]} Kc7 {[%emt 0:00:40]} 38. Ne6+ {[%emt 0:00:16]} Kd7 {[%emt 0:00:10]} 39. Qa8 {[%emt 0:00:13]} a5 {[%emt 0:03:32]} 40. Nf8+ {[%emt 0:00:08]} Kc7 {[%emt 0:00:09]} 41. Ne6+ {[%emt 0:31:41]} Kd7 {[%emt 0:30:14]} 42. Kh2 {[%emt 0:00:00]} Qb5 {[%emt 0:00:00]} 43. a3 {[%emt 0:00:00]} Qxb3 {[%emt 0:00:00]} 44. Qxc6+ {[%emt 0:00:00]} 1-0

[Event "26th OIBM 2023"]
[Site "Gmund am Tegernsee"]
[Date "2023.10.31"]
[Round "4.21"]
[White "Karsay, Pascal"]
[Black "Womacka, Mathias"]
[Result "1-0"]
[ECO "D40"]
[WhiteElo "2301"]
[BlackElo "2371"]
[Annotator "RC"]
[PlyCount "53"]
[EventDate "2023.10.04"]
[EventType "swiss"]
[EventCountry "GER"]
[SourceTitle "playchess.com"]
[Source "ChessBase"]
[SourceQuality "1"]
[TimeControl "40/5400+30:1800+30"]

1. Nf3 {[%emt 0:00:05]} c5 {[%emt 0:00:12]} 2. c4 {[%emt 0:00:17]} Nf6 {[%emt 0:00:19]} 3. Nc3 {[%emt 0:00:19]} Nc6 {[%emt 0:00:29]} 4. e3 {[%emt 0:00:14]} e6 {[%emt 0:00:25]} 5. d4 {[%emt 0:00:16]} d5 {[%emt 0:00:06]} 6. a3 {[%emt 0:00:06]} a6 {[%emt 0:01:18]} 7. cxd5 {[%emt 0:01:41]} exd5 {[%emt 0:00:10]} 8. Bd3 {[%emt 0:01:00]} Bg4 {[%emt 0:05:31]} 9. O-O {[%emt 0:04:17]} cxd4 {[%emt 0:07:43]} 10. exd4 {[%emt 0:00:15]} Be7 {[%emt 0:00:29]} 11. Be3 {[%emt 0:16:49]} O-O {[%emt 0:00:34]} 12. h3 {[%emt 0:02:04]} Bh5 {[%emt 0:06:28]} 13. Rc1 {[%emt 0:01:15]} Qd6 {[%emt 0:25:06]} 14. Re1 {[%emt 0:01:13]} Rfe8 {[%emt 0:02:49]} 15. Bb1 {[%emt 0:17:42]} Bf8 {[%emt 0:20:13]} 16. Na4 {[%emt 0:11:45]} Na5 {[%emt 0:03:39]} 17. Nc5 {[%emt 0:09:29]} Nc4 {[%emt 0:04:25]} 18. Nd3 {[%emt 0:00:18]} Rac8 {[%emt 0:03:31]} 19. Rc2 {[%emt 0:03:42]} Bg6 {[%emt 0:03:08]} 20. Nfe5 {[%emt 0:02:33]} Be4 {[%emt 0:00:10]} 21. Rce2 {[%emt 0:02:45]} Qb6 {[%emt 0:01:16]} 22. Ba2 {[%emt 0:03:03]} Bd6 {[%emt 0:01:40]} 23. Bg5 {[%emt 0:05:10]} Bxe5 {[%emt 0:09:10]} 24. Nxe5 {[%emt 0:00:18]} Nxe5 {[%emt 0:00:26]} 25. dxe5 {[%emt 0:00:06]} Rxe5 {[%emt 0:00:13]} 26. Bxf6 {[%emt 0:04:31]} gxf6 {[%emt 0:00:07]} 27. Rxe4 {[%emt 0:00:40]} 1-0

[Event "26th OIBM 2023"]
[Site "Gmund am Tegernsee"]
[Date "2023.10.31"]
[Round "4.22"]
[White "Cherniaiev, Tykhon"]
[Black "Zawadzka, Jolanta"]
[Result "1/2-1/2"]
[ECO "B13"]
[WhiteElo "2278"]
[BlackElo "2342"]
[Annotator "RC"]
[PlyCount "69"]
[EventDate "2023.10.04"]
[EventType "swiss"]
[EventCountry "GER"]
[SourceTitle "playchess.com"]
[Source "ChessBase"]
[SourceQuality "1"]
[TimeControl "40/5400+30:1800+30"]

1. e4 {[%emt 0:00:03]} c6 {[%emt 0:06:14]} 2. d4 {[%emt 0:00:14]} d5 {[%emt 0:00:06]} 3. exd5 {[%emt 0:00:25]} cxd5 {[%emt 0:00:07]} 4. Bd3 {[%emt 0:00:30]} Nc6 {[%emt 0:00:46]} 5. c3 {[%emt 0:00:12]} Qc7 {[%emt 0:02:34]} 6. h3 {[%emt 0:01:28]} e6 {[%emt 0:04:52]} 7. Nf3 {[%emt 0:03:03]} Bd6 {[%emt 0:03:35]} 8. O-O {[%emt 0:00:39]} Nge7 {[%emt 0:03:42]} 9. Re1 {[%emt 0:02:10]} h6 {[%emt 0:06:28]} 10. Qe2 {[%emt 0:01:26]} Ng6 {[%emt 0:09:13]} 11. c4 {[%emt 0:17:04]} O-O {[%emt 0:09:05]} 12. cxd5 {[%emt 0:11:39]} exd5 {[%emt 0:00:46]} 13. Nc3 {[%emt 0:00:21]} Nge7 {[%emt 0:11:30]} 14. Nb5 {[%emt 0:01:57]} Qd8 {[%emt 0:00:10]} 15. Ne5 {[%emt 0:04:21]} Bb4 {[%emt 0:05:41]} 16. Bd2 {[%emt 0:05:44]} Bxd2 {[%emt 0:01:42]} 17. Qxd2 {[%emt 0:00:21]} a6 {[%emt 0:00:11]} 18. Nxc6 {[%emt 0:00:18]} Nxc6 {[%emt 0:00:16]} 19. Nc3 {[%emt 0:00:06]} Nxd4 {[%emt 0:09:01]} 20. Bf1 {[%emt 0:02:04]} Nc6 {[%emt 0:04:12]} 21. Nxd5 {[%emt 0:01:24]} Be6 {[%emt 0:01:35]} 22. Rad1 {[%emt 0:00:25]} Rc8 {[%emt 0:00:49]} 23. g3 {[%emt 0:01:01]} Bxd5 {[%emt 0:02:31]} 24. Qxd5 {[%emt 0:00:43]} Qf6 {[%emt 0:00:16]} 25. b3 {[%emt 0:03:22]} Rfd8 {[%emt 0:00:58]} 26. Qe4 {[%emt 0:02:30]} Nd4 {[%emt 0:01:53]} 27. Kg2 {[%emt 0:02:38]} Rc2 {[%emt 0:05:14]} 28. Re2 {[%emt 0:00:27]} Nxe2 {[%emt 0:03:33]} 29. Rxd8+ {[%emt 0:01:21]} Qxd8 {[%emt 0:00:05]} 30. Qxc2 {[%emt 0:00:08]} Qd5+ {[%emt 0:00:57]} 31. Kh2 {[%emt 0:00:09]} Nd4 {[%emt 0:00:13]} 32. Qc8+ {[%emt 0:00:05]} Kh7 {[%emt 0:00:05]} 33. Bg2 {[%emt 0:00:10]} Nf3+ {[%emt 0:01:22]} 34. Bxf3 {[%emt 0:00:07]} Qxf3 {[%emt 0:00:04]} 35. Qc5 {[%emt 0:00:31]} 1/2-1/2